Cogmind - Beta 13 X1 @@@ ROGUE MODE // 2023.07.22 @ 01:40:21 Player: Runia Result: Destroyed by 03-T9Z(R) with Subdweller Beam Cannon Performance ------------- Evolutions (0) 0 Regions Visited (3) 600 Robots Destroyed (40) 200 Value Destroyed (924) 924 Prototype IDs (4) 80 Alien Tech Used (0) 0 Bonus (-113) -113 TOTAL SCORE: 1691 Bonus ------- Friendly Fire -113 Cogmind --------- Core Integrity 0/250 Matter 237/450 Energy 138/150 System Corruption 3% Temperature Cool (9) Movement Treading (660) Ox5 Location -10/Subcaves Parts ------- > --- POWER (1) -------- Light Angular Momentum Engine > --- PROPULSION (2) --- Spiked Treads > --- UTILITY (2) ------ Huge Storage Unit Large Matter Pod > --- WEAPON (2) ------- Subdweller Beam Cannon Grenade Launcher > --- INVENTORY (25) --- Light Treads Light Treads Light Treads Light Treads Spiked Treads Compact Wheel Compact Wheel High-capacity Matter Pod (200) Improved Terrain Scanner Splice Drone Bay (6/6) Beamcaster Assault Rifle Assault Rifle Assault Rifle Assault Rifle Light Assault Rifle Light Assault Rifle Subdweller Machine Gun Battle Cannon Datajack Mining Laser Mining Claw Piercing Trap Peak State ------------ > --- POWER ------------ Light Angular Momentum Engine > --- PROPULSION ------- Spiked Treads Wheel > --- UTILITY ---------- Huge Storage Unit Large Matter Pod > --- WEAPON ----------- Subdweller Beam Cannon Battle Cannon > --- INVENTORY -------- Light Treads Light Treads Light Treads Spiked Treads Compact Wheel Compact Wheel High-capacity Matter Pod Improved Terrain Scanner Splice Drone Bay Beamcaster Assault Rifle Assault Rifle Assault Rifle Assault Rifle Light Assault Rifle Light Assault Rifle Subdweller Machine Gun Grenade Launcher Datajack Mining Laser Mining Claw Piercing Trap [Rating: 17] Favorites ----------- Power Light Ion Engine Engine Light Ion Engine Propulsion Light Treads Treads Light Treads Leg Aluminum Leg Wheel Compact Wheel Utility Huge Storage Unit Device Structural Scanner Storage Huge Storage Unit Protection Light Armor Plating Weapon Assault Rifle Energy Gun Medium Laser Energy Cannon Subdweller Beam Cannon Ballistic Gun Assault Rifle Ballistic Cannon Battle Cannon Launcher Grenade Launcher Special Weapon Mining Laser Build | -11 -10 -10 -10 ------- Run | Jun Mat Min Sub Slots Evolved . | . . . . Power . | . . . . Propulsion . | . . . . Utility . | . . . . Weapon . | . . . . Parts Attached 43 | 2 13 11 17 Power 2 | . 1 1 . Engine 2 | . 1 1 . Core . | . . . . Reactor . | . . . . Propulsion 6 | 2 1 1 2 Treads 4 | 2 . 1 1 Leg . | . . . . Wheel 2 | . 1 . 1 Hover . | . . . . Flight . | . . . . Utility 7 | . 3 3 1 Device 2 | . 1 1 . Storage 3 | . 2 . 1 Processor . | . . . . Hackware . | . . . . Protection 2 | . . 2 . Artifact . | . . . . Weapon 28 | . 8 6 14 Energy Gun 1 | . 1 . . Energy Cannon 3 | . . . 3 Ballistic Gun 11 | . 4 3 4 Ballistic Cannon 1 | . . . 1 Launcher 9 | . 3 3 3 Special Weapon 3 | . . . 3 Impact Weapon . | . . . . Slashing Weapon . | . . . . Piercing Weapon . | . . . . Special Melee Weapon . | . . . . Unidentified Prototypes 1 | . . 1 . Parts Lost 7 | . 2 1 4 Power 1 | . 1 . . Propulsion 3 | . . 1 2 Utility 2 | . 1 . 1 Weapon 1 | . . . 1 Highest Loss Streak 2 | . 1 1 2 To Critical Strikes . | . . . . Average Slot Usage (%) 94 | . 87 97 99 Engine 13 | . 13 14 14 Treads 15 | . 17 14 14 Wheel 12 | . 10 14 13 Device 1 | . 2 . . Storage 18 | . 14 14 25 Protection 3 | . . 11 2 Energy Gun 3 | . 7 . . Energy Cannon 1 | . . . 4 Ballistic Gun 19 | . 19 27 13 Ballistic Cannon 2 | . . . 6 Special Weapon 1 | . . . 3 Naked Turns . | . . . . Heaviest Build 103 | 11 88 96 103 Greatest Support 40 | 40 40 16 16 Greatest Overweight (x) 10 | . 5 5 10 Average Overweight (x) 5 | . 4 5 7 Largest Inventory Capacity 25 | 8 25 25 25 Average Capacity 24 | 8 24 25 25 Most Carried 24 | 6 13 23 24 Average Carried 16 | 5 8 18 22 Final Capacity 25 | 8 25 25 25 Final Carried 23 | 3 13 21 23 Class Distribution -------------------- 90% | Mutant 9% | Derelict-Mutant Dominant Class ---------------- Mutant | -10/Materials Mutant | -10/Mines Mutant | -10/Subcaves Resources | -11 -10 -10 -10 ----------- Run | Jun Mat Min Sub Matter Collected 1288 | 200 436 449 203 Remotely . | . . . . Salvage Created 1262 | . 685 404 173 Parts 83 | . 39 26 18 Haulers Intercepted 2 | . 2 . . Recyclers Shooed 1 | . . 1 . Parts Field Recycled . | . . . . Retrieved Matter . | . . . . Parts Self-Destructed . | . . . . Prevented . | . . . . Kills | -11 -10 -10 -10 ------- Run | Jun Mat Min Sub Combat Hostiles Destroyed 30 | . 16 9 5 Guns 13 | . 6 5 2 Cannons 1 | . . . 1 AOE 14 | . 8 4 2 Classes Destroyed 10 | . 7 . 3 Worker 1 | . 1 . . Tunneler 2 | . 1 1 . Hauler 2 | . 2 . . Recycler 3 | . 3 . . Operator 1 | . 1 . . Swarmer 8 | . 6 2 . Grunt 17 | . 10 7 . Artisan 1 | . . . 1 Cobbler 1 | . . . 1 Subdweller 5 | . . . 5 Thug 1 | . . 1 . Best Kill Streak 4 | . 4 4 2 Combat Bots Only 4 | . 4 3 2 Max Kills in Single Turn 3 | . 3 3 2 Gunslinging . | . . . . Exploded 3 | . 3 2 2 Melee . | . . . . Uniques/NPCs Destroyed . | . . . . Combat | -11 -10 -10 -10 -------- Run | Jun Mat Min Sub Damage Taken 1232 | . 378 228 626 Core 252 | . 59 21 172 Absorbed by Shields . | . . . . Core Remaining (%) 100 | 100 . . . Volleys Fired 123 | . 56 22 45 Largest 2 | . 2 2 2 Hottest 119 | . 70 40 119 Shots Fired 208 | . 103 43 62 Gun 157 | . 94 41 22 Cannon 21 | . . . 21 Launcher 17 | . 9 2 6 Special 13 | . . . 13 Kinetic 128 | . 55 41 32 Thermal 63 | . 39 . 24 Explosive 17 | . 9 2 6 Electromagnetic . | . . . . Robot Hit Streak 18 | . 15 9 18 Robot Miss Streak 5 | . 4 5 2 Penetration Max . | . . . . Secondary Targets . | . . . . Shots Hit Robots 121 | . 61 28 32 Core Hits 67 | . 40 16 11 Critical Kills 1 | . 1 . . Critical Parts Destroyed . | . . . . Critical Strikes 6 | . 5 . 1 Burn 4 | . 4 . . Destroy 1 | . 1 . . Blast 1 | . . . 1 Melee Attacks . | . . . . Impact . | . . . . Slashing . | . . . . Piercing . | . . . . Sneak Attacks . | . . . . Combat Hostiles . | . . . . Follow-up Attacks . | . . . . Damage Inflicted 2297 | . 1049 546 702 Guns 1209 | . 642 329 238 Cannons 313 | . . . 313 Explosions 775 | . 407 217 151 Melee . | . . . . Ramming . | . . . . Kinetic 996 | . 278 329 389 Thermal 526 | . 364 . 162 Explosive 775 | . 407 217 151 Electromagnetic . | . . . . Impact . | . . . . Slashing . | . . . . Piercing . | . . . . Highest Corruption 3 | . 3 3 3 Average Corruption 2 | . 2 3 3 Corruption Purged . | . . . . Corruption Blocked . | . . . . Effects 34 | . 6 11 17 Message Errors 7 | . 1 2 4 Matter Fused 10 | . 1 3 6 Heat Flow Errors 2 | . 1 . 1 Energy Discharges 6 | . 2 2 2 Data Loss (minor) 2 | . 1 1 . Data Loss (major) 3 | . . 2 1 Misfires 3 | . . 1 2 Weapon Failures 1 | . . . 1 Overload Shots . | . . . . Overflow Damage 16 | . . 16 . Projectiles . | . . . . Explosions 16 | . . 16 . Melee . | . . . . Knockbacks . | . . . . Impact . | . . . . Kinetic . | . . . . Secondary . | . . . . Self-Inflicted Damage 75 | . 32 20 23 Shots 3 | . 1 1 1 Rammed . | . . . . Targets Rammed . | . . . . Kicked . | . . . . Crushed . | . . . . Highest Temperature 298 | . 298 10 214 Average Temperature 50 | . 57 4 42 Received Heat Transfer 330 | . 147 84 99 Effects 2 | . 2 . . Interference 2 | . 2 . . Siege Activations . | . . . . Robots Corrupted . | . . . . Combat Hostiles . | . . . . Parts Fried . | . . . . Impact Corruptions . | . . . . Robots Melted 2 | . 2 . . Combat Hostiles 2 | . 2 . . Parts Melted 4 | . 4 . . Heat Transferred 1591 | . 1369 . 222 Parts Sabotaged . | . . . . Parts Stolen . | . . . . Parts Stripped . | . . . . Power Chain Reactions . | . . . . Missiles Intercepted . | . . . . Alert | -11 -10 -10 -10 ------- Run | Jun Mat Min Sub Peak Influence 216 | . 216 180 . Initial 42 | . . 42 . Average 107 | . 127 75 . Maximum Alert Level 1 | . 1 . . Low Security (%) 85 | 100 76 100 . Level 1 14 | . 23 . . Level 2 . | . . . . Level 3 . | . . . . Level 4 . | . . . . Level 5 . | . . . . High Security . | . . . . Max Security . | . . . . Squads Dispatched 3 | . 3 . . Investigation 2 | . 2 . . Extermination . | . . . . Reinforcement 1 | . 1 . . Assault . | . . . . Garrison . | . . . . Intercept . | . . . . Searches Triggered . | . . . . Construction Impeded . | . . . . Haulers Reinforced . | . . . . Active Scanning Responses . | . . . . Cargo Convoy Interrupts . | . . . . Stealth | -11 -10 -10 -10 --------- Run | Jun Mat Min Sub Distress Signals 1 | . 1 . . Communications Jammed . | . . . . Distress Signals . | . . . . Times Spotted 45 | . 27 10 8 Peak Tracking Total 6 | . 6 3 3 Tactical Retreats 2 | . 2 . . Traps | -11 -10 -10 -10 ------- Run | Jun Mat Min Sub Traps Triggered 4 | . 3 . 1 Indirectly . | . . . . Trap Hack Attempts . | . . . . Triggered . | . . . . Disarmed . | . . . . Reprogrammed . | . . . . Reused . | . . . . Traps Extracted . | . . . . Installed . | . . . . Triggered . | . . . . Most Traps Carried 1 | . . . 1 Machines | -11 -10 -10 -10 ---------- Run | Jun Mat Min Sub Machines Disabled . | . . . . Max in Single Turn . | . . . . Machines Repaired . | . . . . Machines Sabotaged . | . . . . Overloaded Fab Kills . | . . . . Hacking | -11 -10 -10 -10 --------- Run | Jun Mat Min Sub Machines Accessed 7 | . 6 1 . Terminals 4 | . 4 . . Fabricators . | . . . . Repair Stations . | . . . . Recycling Units 2 | . 2 . . Scanalyzers . | . . . . Garrison Access . | . . . . Total Hacks 14 | . 13 1 . Successful 5 | . 4 1 . Failed 9 | . 9 . . Catastrophic 2 | . 2 . . Database Lockouts . | . . . . Manual 8 | . 8 . . Terminals 6 | . 6 . . Fabricators . | . . . . Repair Stations . | . . . . Recycling Units 7 | . 7 . . Scanalyzers . | . . . . Garrison Access . | . . . . Terminal Hacks 5 | . 4 1 . Prototype ID Bank 1 | . 1 . . Open Door 1 | . . 1 . Emergency Access Points 1 | . 1 . . Locate Traps 1 | . 1 . . Zone Layout 1 | . 1 . . Fabricator Hacks . | . . . . Repair Station Hacks . | . . . . Recycling Unit Hacks . | . . . . Scanalyzer . | . . . . Garrison Access Hacks . | . . . . Unauthorized Hacks . | . . . . Terminals . | . . . . Fabricators . | . . . . Repair Stations . | . . . . Recycling Units . | . . . . Scanalyzers . | . . . . Garrison Access . | . . . . Data Cores Recovered . | . . . . Used . | . . . . Hacking Detections 6 | . 6 . . Full Trace Events 1 | . 1 . . Feedback Events . | . . . . Feedback Blocked . | . . . . Robot Schematics Acquired . | . . . . Robots Built . | . . . . Authchips . | . . . . Time . | . . . . Total Robot Build Rating . | . . . . Part Schematics Acquired . | . . . . Parts Built . | . . . . Authchips . | . . . . Time . | . . . . Total Part Build Rating . | . . . . Parts Repaired . | . . . . Time . | . . . . Parts Recycled . | . . . . Recycled Matter . | . . . . Retrieved Matter . | . . . . Retrieved Components . | . . . . Parts Scanalyzed . | . . . . Part Schematics Acquired . | . . . . Parts Damaged . | . . . . Bothacking | -11 -10 -10 -10 ------------ Run | Jun Mat Min Sub Used RIF Installer . | . . . . Robots Hacked . | . . . . Non-combat . | . . . . Combat . | . . . . Robot Hacks Applied . | . . . . Relay Couplers Released . | . . . . Fabnet Peak Effective % . | . . . . Robots Rewired . | . . . . Allies Hacked . | . . . . Hacks Repelled . | . . . . Allies | -11 -10 -10 -10 -------- Run | Jun Mat Min Sub Total Allies . | . . . . Largest Group . | . . . . Highest-Rated Group . | . . . . Highest-Rated Ally . | . . . . Total Orders . | . . . . Ally Attacks . | . . . . Total Damage . | . . . . Kills . | . . . . Allies Corrupted . | . . . . Allies Melted . | . . . . Intel | -11 -10 -10 -10 ------- Run | Jun Mat Min Sub Robot Analysis Total . | . . . . Derelict Logs Recovered 3 | . . 2 1 Drone Launches . | . . . . Drone Recoveries . | . . . . Exploration | -11 -10 -10 -10 ------------- Run | Jun Mat Min Sub Turns Passed 3359 | 4 1299 806 1250 Spaces Moved 1479 | 1 561 388 529 Core . | . . . . Treads 95 | 1 94 . . Legs . | . . . . Wheels 1384 | . 467 388 529 Hover . | . . . . Flight . | . . . . Fastest Speed 160 | 160 160 175 175 Average Speed 190 | 160 193 175 199 Slowest Speed 320 | 160 320 175 230 Overloaded Moves . | . . . . Propulsion Burnouts . | . . . . Robots Hopped . | . . . . Cave-ins Triggered . | . . . . Exploration Rate (%) 51 | 2 89 71 43 Regions Visited 3 Branch Regions 2 Pre-discovered Areas 3 | . . 2 1 Known Exits Taken . | . . . . Unknown Exits Taken 3 | 1 1 1 . Scrap Searched 10 | . . 1 9 Spaces Dug 4 | . . . 4 Terrain Destroyed 101 | . 51 18 32 Melee . | . . . . Projectile 4 | . . . 4 AOE 97 | . 51 18 28 Terrain Rammed . | . . . . Walls Destroyed . | . . . . Machines Disabled . | . . . . Actions | -11 -10 -10 -10 --------- Run | Jun Mat Min Sub Total 1783 | 5 676 469 633 Wait 107 | . 33 39 35 Move 1476 | . 560 387 529 Hop . | . . . . Pick Up 24 | . 11 8 5 Fast Attach 6 | . 3 2 1 Attach 8 | 2 2 1 3 Detach 1 | . . 1 . Swap 29 | . 8 8 13 Drop 9 | 3 3 1 2 Fire 123 | . 56 22 45 Melee . | . . . . Ram . | . . . . Kick . | . . . . Crush . | . . . . Escape Stasis . | . . . . Rewire . | . . . . Trap . | . . . . Miscellaneous . | . . . . Route ------- -11/Junkyard -10/Materials (discovered 5 exits: [*Mat x3] / *Min / [*Sub]) -10/Mines (discovered 2 exits: [*Exi] / [*Sub]) -10/Subcaves (discovered 2 exits: [*Mat x2]) History --------- Turn | Location | Event 5 | -11/Junkyard | Discovered new exit (range 0) 5 | -11/Junkyard | Entered Materials 304 | -10/Materials | Build established: Mutant 401 | -10/Materials | Discovered new exit (range 19) 596 | -10/Materials | Discovered new exit (range 5) 770 | -10/Materials | Discovered new exit (range 8) 1031 | -10/Materials | Discovered new exit (range 13) 1178 | -10/Materials | Discovered new exit (range 9) 1304 | -10/Materials | Entered Mines 1446 | -10/Mines | Learned location of Mines (-9) 1559 | -10/Mines | Excavation squad dispatched 1559 | -10/Mines | A large section of the Mines collapsed 1663 | -10/Mines | Found the Drone Emporium 1669 | -10/Mines | Found Prototype Device 1669 | -10/Mines | Identified Splice Drone Bay 1780 | -10/Mines | Learned location of Zion (-6) 1809 | -10/Mines | Excavation squad dispatched 1939 | -10/Mines | Discovered new exit (range 9) 2061 | -10/Mines | Deemed a non-threat by the Exiles lab entrance 2061 | -10/Mines | Discovered new exit (range 5) 2110 | -10/Mines | Entered Subcaves 2110 | -10/Subcaves | Learned location of 1 exit from Materials 2689 | -10/Subcaves | A swath of the cavern ceiling suddenly collapsed 2753 | -10/Subcaves | Discovered new exit (range 3) 2779 | -10/Subcaves | A swath of the cavern ceiling suddenly collapsed 2811 | -10/Subcaves | Core integrity fell below 50% 3119 | -10/Subcaves | Discovered new exit (range 14) 3120 | -10/Subcaves | Met a Zionite searching for "candidates" 3232 | -10/Subcaves | Build established: Derelict-Mutant 3355 | -10/Subcaves | Ambushed by Subdweller buried in earth 3355 | -10/Subcaves | Ambushed by Subdweller buried in earth 3360 | -10/Subcaves | Core integrity fell below 20% 3360 | -10/Subcaves | Destroyed by 03-T9Z(R) with Subdweller Beam Cannon Last Messages --------------- 02935_ Identified Spk. Treads. 02939_ Acquired Lgt. Treads. 03056_ GZ-UV1(z): "She is not going to be happy we haven't found any suitable candidates yet." 03076_ 3S-5KE(R) destroyed. 03076_ NY-HOY(R) destroyed. 03089_ Acquired 8 matter. 03119_ EXIT=FOUND 03120_ GZ-UV1(z): "Hey you! It's really dangerous down here, I feel that you could die at any moment. For your health and safety might I suggest a trip to Zion?" World map confirmed: -6/Zion. 03140_ System corrupted: Matter fused (-5). 03201_ System corrupted: FCS attempts to trigger Sub. Beam Cannon. 03201_ System corrupted: Sub. Beam Cannon misfires. 03300_ EW JLWK7NNKXU | S<:TZJ 03345_ System corrupted: Energy discharge (-45). 03353_ Wheel destroyed. 03356_ 03-T9Z(R): "ARGHSUB!" 03356_ ZX-4QI(R): "ARGHSUB!" Map ----- +----------------------------------------------------+ | ?????????????????????????????????## #??????? | | ??????????????????????????????????# #??????? | | ??????????????????????????????????# # ##??????? | | ??????????????????????????????????## ####??????? | | ??????????????????????????????????# ### ####???? | | ??????????????????????????????????## ## ##??? | | ??????????????????????????????????# #??? | | ??????????????????????????????????## #??? | | ???????????????????????????????????##### #??? | | ?????????????????????????????????####??## #??? | | ???????????????????????????????### ##??# "#### | | ???????????????????????????????# #??## ##" | | ???????????????????????????????# #???# ## " | | ???????????????????????????????# #????# " | | ???????????????????????????????# #????# "" "" | | ???????????????????????????????# ####?## | | ???????????????????????????????## """#### | | ????????????????????????????????## """ ## ! | | ?????????????????????????????????# """""""""![= # | | ?????????????????????????????????# """ " & % # | | ????????????????????###########??## " """ " && # | | ????????????????????# ; ; #???###" "" &### | | ?????????????????##### #????## """ #?? | | ????????????????## " R R ##??##" ##"""" ##?? | | ????????????????# " ####" ##""" #??? | | ????????????# " R @ ##"" ### " #??? | | ????????????? ####; ###" #### #??? | | ???????????????????# ; ## #### ##??? | | ???????????????????### ;;;# ## #?## #???? | | ?????????????????????######" #??###???? | | ??????????????????????????# ## #???????? | | ??????????????????????????## ### #??????? | | ???????????????????????????# #?##### ####??????? | | ???????????????????????????# ??????##?????????? | | ??????????????????????????? ????????????????? | | ?????????????????????????? #???????????????? | | ????????????????????????? ##???????????????? | | ????????????????????????# " #????????????????? | | ????????????????????????# " ##????????????????? | | ????????????????????????## " #?????????????????? | | ?????????????????????????# " ##?????????????????? | | ????????????????????????? " #???????????????????? | | ????????????????????????? ? ????????????????????? | | ????????????????????????? ? ????????????????????? | | ???????????????????????????? ????????????????????? | | ?????????????????????????????????????????????????? | | ?????????????????????????????????????????????????? | | ?????????????????????????????????????????????????? | | ?????????????????????????????????????????????????? | | ?????????????????????????????????????????????????? | +----------------------------------------------------+ Best States ------------- Heat Dissipation 25 Energy Generation 18 Energy Capacity 150 Matter Stores 450 Matter Capacity 450 Sight Range 16 Terrain Scan Density 10 Armor Coverage 150 Evasion (%) 40 Recoil Reduction 2 Item Schematics ----------------- None Robot Schematics ------------------ None Fabricated ------------ Nothing Alien Tech Used ----------------- None Achievements -------------- None Challenges ------------ None Game ------ Seed SubatomicLobotomyAxe Manual? 0 Play Time 00:16:32 Cumulative 811.9 hours Start 2023.07.22 @ 01:25:31 End 2023.07.22 @ 01:40:21 Sessions 1 Manual Loads 0 Difficulty Rogue Special Mode None Game No. 704 Rogue 704 Adventurer 0 Explorer 0 Win Type - Total 39 Types 14/7/7/1/1/1/6/1/1 Lore% 93 Gallery% 96 Achievement% 82 Wizard Run 0 Options --------- ASCII 0 Keyboard 0 Movement Mouse Keybinds 1 Fullscreen 2 Font 24/Smallcaps Map View 76x50 Tactical HUD 1 Map Filters NONE Filters NONE Steam 1 RUN: f3908b7b-96a0-486b-9eaf-80c2978c3c2b